fUST/lending_fUST_20251118
["ID","MTS","AMOUNT","RATE_DAILY","PERIOD"]
[394257710,1763411355575,-500.0,0.00032365,2]
[394257711,1763411355596,-500.0,0.00032365,2]
[394257712,1763411355621,-500.0,0.00032365,2]
[394257713,1763411355642,-500.0,0.00032365,2]
[394257714,1763411355663,-500.0,0.00032365,2]
[394257715,1763411355684,-500.0,0.00032365,2]
[394257716,1763411355705,-350.0,0.00032365,2]
[394257717,1763411355728,-500.0,0.00032365,2]
[394257718,1763411355750,-500.0,0.00032365,2]
[394257719,1763411355770,-500.0,0.00032365,2]
[394257720,1763411355790,-250.0,0.00032365,2]
[394257721,1763411355811,-500.0,0.00032365,2]
[394257722,1763411355833,-500.0,0.00032365,2]
[394257723,1763411355856,-500.0,0.00032365,2]
[394257724,1763411355875,-500.0,0.00032365,2]
[394257725,1763411355898,-500.0,0.00032365,2]
[394257726,1763411355918,-500.0,0.00032365,2]
[394257727,1763411355940,-500.0,0.00032365,2]
[394257728,1763411355961,-500.0,0.00032365,2]
[394257729,1763411355981,-500.0,0.00032365,2]
[394257730,1763411356001,-500.0,0.00032365,2]
[394257731,1763411356020,-500.0,0.00032365,2]
[394257732,1763411356040,-500.0,0.00032365,2]
[394257733,1763411356062,-500.0,0.00032365,2]
[394257734,1763411356087,-500.0,0.00032365,2]
[394257735,1763411356110,-500.0,0.00032365,2]
[394257736,1763411356129,-500.0,0.00032365,2]
[394257737,1763411356149,-500.0,0.00032365,2]
[394257738,1763411356170,-500.0,0.00032365,2]
[394257739,1763411356190,-500.0,0.00032365,2]
[394257740,1763411356210,-500.0,0.00032365,2]
[394257741,1763411356230,-500.0,0.00032365,2]
[394257742,1763411356251,-500.0,0.00032365,2]
[394257743,1763411356271,-500.0,0.00032365,2]
[394257744,1763411356292,-500.0,0.00032365,2]
[394257745,1763411356312,-500.0,0.00032365,2]
[394257746,1763411356332,-500.0,0.00032365,2]
[394257747,1763411356353,-500.0,0.00032365,2]
[394257748,1763411356373,-500.0,0.00032365,2]
[394257749,1763411356395,-500.0,0.00032365,2]
[394257750,1763411356415,-500.0,0.00032365,2]
[394257751,1763411356435,-500.0,0.00032365,2]
[394257752,1763411356454,-450.0,0.00032365,2]
[394257753,1763411356476,-500.0,0.00032365,2]
[394257754,1763411356496,-300.0,0.00032365,2]
[394257755,1763411356518,-300.0,0.00032365,2]
[394257756,1763411356538,-250.0,0.00032365,2]
[394257757,1763411356559,-500.0,0.00032365,2]
[394257758,1763411356579,-250.0,0.00032365,2]
[394257759,1763411356602,-500.0,0.00032365,2]
[394257760,1763411356623,-500.0,0.00032365,2]
[394257761,1763411356643,-500.0,0.00032365,2]
[394257762,1763411356664,-500.0,0.00032365,2]
[394257763,1763411356684,-500.0,0.00032365,2]
[394257764,1763411356705,-500.0,0.00032365,2]
[394257765,1763411356726,-500.0,0.00032365,2]
[394257766,1763411356747,-500.0,0.00032365,2]
[394257767,1763411356767,-500.0,0.00032365,2]
[394257768,1763411356787,-500.0,0.00032365,2]
[394257769,1763411356807,-300.0,0.00032365,2]
[394257770,1763411356827,-250.0,0.00032365,2]
[394257771,1763411356846,-402.67373373,0.00032365,2]
[394257772,1763411356870,-500.0,0.00032365,2]
[394257773,1763411356891,-500.0,0.00032365,2]
[394257774,1763411356911,-500.0,0.00032365,2]
[394257775,1763411356931,-500.0,0.00032365,2]
[394257776,1763411356951,-500.0,0.00032365,2]
[394257777,1763411356970,-500.0,0.00032365,2]
[394257778,1763411356990,-300.0,0.00032365,2]
[394257779,1763411357011,-500.0,0.00032365,2]
[394257780,1763411357031,-500.0,0.00032365,2]
[394257781,1763411357053,-596.29986981,0.00032365,2]
[394257782,1763411357076,-500.0,0.00032365,2]
[394257783,1763411357100,-500.0,0.00032365,2]
[394257784,1763411357121,-240.0,0.00032365,2]
[394257785,1763411357142,-500.0,0.00032365,2]
[394257786,1763411357163,-500.0,0.00032365,2]
[394257787,1763411357184,-573.14665297,0.00032365,2]
[394257788,1763411357205,-500.0,0.00032365,2]
[394257789,1763411357226,-500.0,0.00032365,2]
[394257790,1763411357250,-427.40368411,0.00032365,2]
[394257791,1763411357345,-500.0,0.00032365,2]
[394257792,1763411357369,-500.0,0.00032365,2]
[394257793,1763411357390,-500.0,0.00032365,2]
[394257794,1763411357412,-500.0,0.00032365,2]
[394257795,1763411357433,-500.0,0.00032365,2]
[394257796,1763411357453,-500.0,0.00032365,2]
[394257797,1763411357474,-161.46407152,0.00032365,2]
[394257798,1763411357494,-500.0,0.00032365,2]
[394257799,1763411357513,-32746.0400455,0.00032367,30]
[394257800,1763411357532,-441.012006,0.00033165,2]
[394257801,1763411357552,-159.51,0.000332,7]
[394257802,1763411357570,-1012.1116859,0.00034,2]
[394257803,1763411357590,-318.33,0.00034386,2]
[394257804,1763411357612,-1563.08238,0.00034844,2]
[394257805,1763411357631,-444.50614288,0.00034963,2]
[394257806,1763411357651,-163.0,0.00035,120]
[394257807,1763411357670,-265.91147868,0.0003624,2]
[394257808,1763411357689,-501.10824016,0.000367,5]
[394257809,1763411357708,-500.0,0.000367,2]
[394257810,1763411357727,-181.47390391,0.00037032,17]
[394257811,1763411357749,-477.49,0.00037354,2]
[394257812,1763411357769,-444.50614288,0.0003766,2]
[394257813,1763411357788,-1045.54033089,0.000377,2]
[394257814,1763411357808,-500.0,0.00037748,7]
[394257815,1763411357829,-633.06870375,0.00037748,7]
[394257816,1763411357854,-500.0,0.00037748,7]
[394257817,1763411357874,-500.0,0.00037748,7]
[394257818,1763411357894,-500.0,0.00037748,7]
[394257819,1763411357914,-500.0,0.00037748,7]
[394257820,1763411357935,-164.846,0.00037748,49]
[394257821,1763411357960,-183.9,0.00037749,14]
[394257822,1763411357982,-263410.99503152,0.0003776,2]
[394257823,1763411358002,-2924.94,0.000378,14]
[394257824,1763411358023,-723.29,0.000378,30]
[394257825,1763411358043,-1244.81,0.000378,14]
[394257826,1763411358063,-98630.78183372,0.0003799,2]
[394257827,1763411358086,-183.9,0.00038023,14]
[394257828,1763411358106,-183.91102577,0.00038297,14]
[394257829,1763411358127,-441.012006,0.00039654,2]
[394257830,1763411358147,-77731.06523347,0.000397,2]
[394257831,1763411358170,-39386.489312,0.000398,30]
[394257832,1763411358189,-413.0,0.00040195,2]
[394257833,1763411358211,-636.66,0.00040227,2]
[394257834,1763411358233,-1045.54033089,0.000405,2]
[394257835,1763411358254,-151.0,0.000407,17]
[394257836,1763411358278,-379.87929365,0.00041,120]
[394257837,1763411358299,-215.3498395,0.00041,120]
[394257838,1763411358319,-225.10900542,0.00041,120]
[394257839,1763411358339,-506.60457817,0.00041095,120]
[394257840,1763411358362,-500.0,0.00041095,120]
[394257841,1763411358388,-513.25143938,0.00041095,120]
[394257842,1763411358414,-516.18594482,0.00041095,120]
[394257843,1763411358440,-515.0782928,0.00041095,120]
[394257844,1763411358463,-628.63694629,0.00041095,120]
[394257845,1763411358487,-500.0,0.00041095,120]
[394257846,1763411358510,-531.21813403,0.00041095,120]
[394257847,1763411358533,-273.74550865,0.00041095,120]
[394257848,1763411358556,-500.0,0.00041095,120]
[394257849,1763411358579,-593.70394517,0.00041095,120]
[394257850,1763411358605,-522.91605907,0.00041095,120]
[394257851,1763411358628,-260.25701025,0.00041095,120]
[394257852,1763411358651,-442.44123587,0.00041095,120]
[394257853,1763411358738,-240.66194298,0.00032265,2]
[394257854,1763411358763,-857.64,0.00032357,10]
[394257855,1763411358785,-77.63585876,0.00041095,120]
[394257856,1763411358809,-521.73617282,0.00041095,120]
[394257857,1763411358832,-505.36057145,0.00041095,120]
[394257858,1763411358856,-517.81036505,0.00041095,120]
[394257859,1763411358882,-500.0,0.00041095,30]
[394257860,1763411358906,-500.0,0.00041095,120]
[394257861,1763411358931,-508.66986178,0.00041095,120]
[394257862,1763411358957,-509.55089119,0.00041095,120]
[394257863,1763411358981,-500.0,0.00041095,120]
[394257864,1763411359003,-500.0,0.00041095,120]
[394257865,1763411359024,-518.91574271,0.00041095,120]
[394257866,1763411359049,-512.40183546,0.00041095,120]
[394257867,1763411359073,-514.05566228,0.00041095,120]
[394257868,1763411359102,-500.0,0.00041095,120]
[394257869,1763411359123,-490.0,0.00041095,120]
[394257870,1763411359146,-552.7724038,0.00041095,120]
[394257871,1763411359168,-511.49562057,0.00041095,120]
[394257872,1763411359191,-501.97193226,0.00041095,120]
[394257873,1763411359214,-504.93751615,0.00041095,120]
[394257874,1763411359239,-500.0,0.00041095,120]
[394257875,1763411359262,-500.0,0.00041095,7]
[394257876,1763411359286,-560.74874927,0.00041095,120]
[394257877,1763411359307,-500.0,0.00041095,120]
[394257878,1763411359330,-154.97,0.00041096,120]
[394257879,1763411359355,-152.61575921,0.00041096,31]
[394257880,1763411359377,-431.61405997,0.00041369,120]
[394257881,1763411359398,-412.90143982,0.00041369,120]
[394257882,1763411359420,-500.0,0.00041369,30]
[394257883,1763411359443,-500.0,0.00041369,120]
[394257884,1763411359465,-360.94185563,0.00041369,120]
[394257885,1763411359489,-401.26539858,0.00041369,120]
[394257886,1763411359512,-500.0,0.00041369,120]
[394257887,1763411359636,-500.0,0.00041369,120]
[394257888,1763411359660,-500.0,0.00041643,30]
[394257889,1763411359681,-294.57740791,0.00041643,120]
[394257890,1763411359701,-500.0,0.00041643,120]
[394257891,1763411359720,-361.70510697,0.00041643,120]
[394257892,1763411359739,-151.0,0.000418,16]
[394257893,1763411359759,-569.79503807,0.00041917,30]
[394257894,1763411359779,-500.0,0.00041917,120]
[394257895,1763411359798,-500.0,0.00042191,120]
[394257896,1763411359818,-379.87929365,0.000422,120]
[394257897,1763411359837,-215.3498395,0.000422,120]
[394257898,1763411359857,-225.10900542,0.000422,120]
[394257899,1763411359877,-159.51,0.000422,14]
[394257900,1763411359897,-583.96,0.00042465,120]
[394257901,1763411359917,-151.0,0.000428,20]
[394257902,1763411359936,-393.33,0.000431,14]
[394257903,1763411359957,-795.82,0.000431,2]
[394257904,1763411359976,-1045.54033089,0.000433,2]
[394257905,1763411359995,-163.0,0.000434,120]
[394257906,1763411360015,-379.87929365,0.000435,120]
[394257907,1763411360034,-215.3498395,0.000435,120]
[394257908,1763411360053,-225.10900542,0.000435,120]
[394257909,1763411360072,-151.0,0.000438,12]
[394257910,1763411360102,4383.11402635,0.00031942,2]
[394257911,1763411360209,500.0,0.00032365,2]
[394257912,1763411360233,500.0,0.00032365,2]
[394257913,1763411360258,500.0,0.00032365,2]
[394257914,1763411360283,500.0,0.00032365,2]
[394257915,1763411360307,500.0,0.00032365,2]
[394257916,1763411360331,500.0,0.00032365,2]
[394257917,1763411360357,500.0,0.00032365,2]
[394257918,1763411360382,500.0,0.00032365,2]
[394257919,1763411360407,500.0,0.00032365,2]
[394257920,1763411360433,500.0,0.00032365,2]
[394257921,1763411360458,500.0,0.00032365,2]
[394257922,1763411360483,500.0,0.00032365,2]
[394257923,1763411360509,500.0,0.00032365,2]
[394257924,1763411360536,500.0,0.00032365,2]
[394257925,1763411360564,500.0,0.00032365,2]
[394257926,1763411360622,500.0,0.00032365,2]
[394257927,1763411360656,500.0,0.00032365,2]
[394257928,1763411360684,500.0,0.00032365,2]
[394257929,1763411360712,500.0,0.00032365,2]
[394257930,1763411360741,500.0,0.00032365,2]
[394257931,1763411360768,500.0,0.00032365,2]
[394257932,1763411360795,500.0,0.00032365,2]
[394257933,1763411360822,500.0,0.00032365,2]
[394257934,1763411360849,500.0,0.00032365,2]
[394257935,1763411360885,500.0,0.00032365,2]
[394257936,1763411360915,500.0,0.00032365,2]
[394257937,1763411360941,500.0,0.00032365,2]
[394257938,1763411360967,500.0,0.00032365,2]
[394257939,1763411360993,500.0,0.00032365,2]
[394257940,1763411361017,500.0,0.00032365,2]
[394257941,1763411361042,500.0,0.00032365,2]
[394257942,1763411361068,500.0,0.00032365,2]
[394257943,1763411361097,500.0,0.00032365,2]
[394257944,1763411361126,500.0,0.00032365,2]
[394257945,1763411361153,500.0,0.00032365,2]
[394257946,1763411361179,500.0,0.00032365,2]
[394257947,1763411361217,500.0,0.00032365,2]
[394257948,1763411361244,500.0,0.00032365,2]
[394257949,1763411361273,500.0,0.00032365,2]
[394257950,1763411361304,500.0,0.00032365,2]
[394257951,1763411361356,500.0,0.00032365,2]
[394257952,1763411361383,500.0,0.00032365,2]
[394257953,1763411361413,500.0,0.00032365,2]
[394257954,1763411361443,500.0,0.00032365,2]
[394257955,1763411361485,210.00006632,0.00032365,2]
[394257956,1763411361512,500.0,0.00032365,2]
[394257957,1763411361564,500.0,0.00032365,2]
[394257958,1763411371144,650.96,0.000378,30]
[394257959,1763411371624,650.96,0.000434,30]
[394257961,1763411374577,2632.45,0.000378,14]
[394257962,1763411374881,2632.45,0.000434,14]
[394257963,1763411375635,816.75505373,0.00037836,2]
[394257965,1763411383369,250.0,0.00038529,2]
[394257966,1763411386270,150.0,0.00033589,2]
[394257967,1763411386709,257.56,0.00036643,2]
[394257968,1763411387121,386.34,0.00039696,2]
[394257969,1763411387609,515.11,0.0004275,2]
[394257970,1763411387916,189.93964682,0.00041,120]
[394257971,1763411388574,189.93964682,0.000422,120]
[394257972,1763411389231,189.93964682,0.000435,120]
[394257973,1763411391339,16050.51,0.00037836,2]
[394257977,1763411401870,300.0,0.00037935,3]
[394257978,1763411401897,279.0,0.00037935,3]
[394257979,1763411404932,400.0,0.00037935,3]
[394257980,1763411406343,1200.0,0.00037935,3]
[394257981,1763411408575,300.0,0.00037935,2]
[394257982,1763411410241,215.34983949,0.00041,120]
[394257985,1763411410903,215.34983949,0.000422,120]
[394257987,1763411411331,225.10900542,0.00041,120]
[394257988,1763411412010,225.10900542,0.000422,120]
[394257997,1763411427256,337.69605773,0.00037737,2]
[394257998,1763411430831,500.0,0.00032365,2]
[394257999,1763411430859,500.0,0.00032365,2]
[394258000,1763411430887,500.0,0.00032365,2]
[394258001,1763411430915,856.9188619,0.00032365,2]
[394258002,1763411430940,500.0,0.00032365,2]
[394258112,1763411436928,-839.00201684,0.00037936,7]
[394258113,1763411436940,-24284.01608086,0.00037936,7]
[394258147,1763411438579,-1061.86066332,0.00037936,7]
[394258364,1763411440847,-181.39363513,0.00037936,7]
[394258367,1763411440857,-200.0,0.00037936,30]
[394258370,1763411440866,-199.0,0.00044109,30]
[394258373,1763411440876,-328.13,0.000445,14]
[394258375,1763411440885,-189.93964682,0.000448,120]
[394258378,1763411440894,-151.0,0.000449,12]
[394258381,1763411440903,-168.56,0.00045199,14]
[394258383,1763411440912,-199.0,0.00045479,30]
[394258385,1763411440921,-500.0,0.00045753,120]
[394258387,1763411440931,-122.64171805,0.00045803,2]
[394258729,1763411444345,-521.24828195,0.00045803,2]
[394258731,1763411444354,-151.0,0.000459,26]
[394258733,1763411444364,-1045.54033089,0.000461,2]
[394258735,1763411444373,-301.0959178,0.00046143,2]
[394258737,1763411444384,-139.9160882,0.00046143,2]
[394258739,1763411444393,-317.9235118,0.000462,14]
[394258742,1763411444408,-651.0,0.000462,14]
[394258744,1763411444418,-275.8864882,0.000462,14]
[394258746,1763411444428,-199.0,0.00046849,30]
[394258748,1763411444437,-151.0,0.00047,25]
[394258750,1763411444447,-1654.76967035,0.00048,30]
[394258830,1763411445199,-133.78676403,0.00048,30]
[394259096,1763411448361,-17335.01535353,0.00048,30]
[394259098,1763411448373,-2748.4039686,0.00048,30]
[394259107,1763411448445,499.99999999,0.00041095,120]
[394259189,1763411449240,503.89355359,0.00041095,120]
[394259283,1763411450292,527.83155077,0.00041095,120]
[394259334,1763411450750,505.18773883,0.00041095,120]
[394259531,1763411452587,636.11861127,0.00041095,120]
[394259620,1763411453646,500.0,0.00041095,120]
[394259700,1763411454428,513.78736826,0.00041095,120]
[394259759,1763411454982,510.48195405,0.00041095,120]
[394260123,1763411458519,512.44533506,0.00041095,120]
[394260139,1763411458660,384.96934005,0.00041095,120]
[394260226,1763411459732,412.32531484,0.00041095,120]
[394260268,1763411460138,500.0,0.00041095,120]
[394260378,1763411461221,525.80133097,0.00041095,120]
[394260576,1763411463568,521.39930535,0.00041095,120]
[394260661,1763411464365,150.0,0.00031901,2]
[394260705,1763411464765,216.46,0.00034801,2]
[394260748,1763411465168,324.69,0.00037701,2]
[394260753,1763411465214,305.50444546,0.00041095,120]
[394260762,1763411465288,302.51875243,0.00041095,120]
[394260797,1763411465603,432.92,0.00040601,2]
[394260828,1763411465995,516.51888934,0.00041095,120]
[394260829,1763411466020,541.15,0.00043501,2]
[394260840,1763411466137,505.76443237,0.00041095,120]
[394260907,1763411466752,522.9826032,0.00041095,120]
[394260940,1763411467050,500.0,0.00041095,120]
[394260944,1763411467074,512.13275023,0.00041095,120]
[394261039,1763411467943,519.11128006,0.00041095,120]
[394261213,1763411469782,528.14090587,0.00041095,120]
[394261365,1763411471244,240.38503109,0.00041095,120]
[394261677,1763411474603,500.0,0.00041095,120]
[394261818,1763411476020,500.0,0.00041095,120]
[394261843,1763411476252,500.0,0.00041369,120]
[394261872,1763411476523,500.0,0.00041643,120]
[394261899,1763411476764,500.0,0.00041917,120]
[394261924,1763411477022,500.0,0.00042191,120]
[394261938,1763411477252,500.0,0.00042465,120]
[394262000,1763411478177,522.80486135,0.00041095,120]
[394262029,1763411478801,251.38043076,0.00041095,120]
[394262162,1763411480058,500.0,0.00041095,120]
[394262394,1763411482424,500.0,0.00041095,120]
[394262420,1763411482671,404.15309787,0.00041095,120]
[394262482,1763411483857,289.46250011,0.00041095,120]
[394262483,1763411484517,372.20828827,0.00041095,120]
[394262487,1763411485304,500.0,0.00041095,120]
[394262498,1763411488145,524.25059867,0.00041095,120]
[394262502,1763411488604,557.47324993,0.00041095,120]
[394262503,1763411494311,500.0,0.00041095,120]
[394262504,1763411494336,500.0,0.00041095,30]
[394262505,1763411494595,187.63345229,0.00041369,30]
[394262506,1763411494832,508.07924142,0.00041095,120]
[394262507,1763411496748,507.88046938,0.00041095,120]
[394262508,1763411496787,500.0,0.00041095,120]
[394262509,1763411497555,512.43567472,0.00041095,120]
[394262510,1763411497742,152.02745368,0.00031267,2]
[394262511,1763411498117,152.02745368,0.00034601,56]
[394262512,1763411498287,177.4108125,0.00041,120]
[394262513,1763411498598,609.77,0.00041095,120]
[394262514,1763411498863,500.0,0.00041095,2]
[394262515,1763411499024,177.4108125,0.000422,120]
[394262516,1763411499050,172.79196636,0.00041369,2]
[394262517,1763411499138,152.02745368,0.00037936,110]
[394262518,1763411499701,177.4108125,0.000435,120]
[394262519,1763411502800,510.00730896,0.00041095,120]
[394262520,1763411502851,500.0,0.00032364,2]
[394262521,1763411502895,500.0,0.00032364,2]
[394262522,1763411502943,723.62037227,0.00032364,2]
[394262523,1763411502972,500.0,0.00032365,2]
[394262524,1763411503009,856.9188619,0.00032365,2]
[394262525,1763411503217,500.0,0.00041095,120]
[394262526,1763411503333,300.0,0.00032365,2]
[394262527,1763411503813,500.0,0.00032364,2]
[394262528,1763411503855,500.0,0.00032364,2]
[394262529,1763411504945,293.77989514,0.00041095,120]
[394262530,1763411505189,695.12,0.00041095,120]
[394262531,1763411505429,695.12,0.00041369,120]
[394262532,1763411505679,695.12,0.00041643,120]
[394262533,1763411505915,695.12,0.00041917,120]
[394262534,1763411506175,695.12,0.00042191,120]
[394262535,1763411506438,695.12,0.00042465,120]
[394262536,1763411506699,405.20198823,0.00041095,120]
[394262537,1763411506724,695.12,0.00042739,120]
[394262538,1763411506950,695.12,0.00043013,120]
[394262539,1763411507192,695.12,0.00043287,120]
[394262540,1763411507799,695.12,0.00043561,120]
[394262541,1763411508066,695.12,0.00043835,120]
[394262542,1763411510356,462.3251103,0.00041095,120]
[394262543,1763411511052,514.1866284,0.00041095,120]
[394262545,1763411516098,362.68793582,0.00041095,120]
[394262546,1763411516345,500.0,0.00041095,120]
[394262547,1763411518227,506.43860518,0.00041095,120]
[394262549,1763411524617,428.34893194,0.00041095,120]
[394262550,1763411529983,155.0,0.00035,120]
[394262551,1763411543534,150.0,0.00032379,2]
[394262552,1763411543957,174.07,0.00035323,2]
[394262565,1763412215806,-166.0,0.00029973,37]
[394262566,1763412215827,-240.66194298,0.00031113,2]
[394262567,1763412215852,-150.0,0.00031213,2]
[394262568,1763412215872,-443.33805702,0.00032264,2]
[394262570,1763412433098,-158.0,0.00029973,37]
[394262571,1763412433118,-193.85341116,0.00032164,2]
[394262572,1763412433140,-49.8732012,0.00032264,2]
[394262573,1763412433161,-400.0,0.00032362,3]
[394262574,1763412433183,-1600.0,0.00032362,3]
[394262575,1763412433204,-1600.0,0.00032363,3]
[394262576,1763412433229,-400.0,0.00032363,2]
[394262577,1763412433249,-500.0,0.00032364,30]
[394262578,1763412433269,-500.0,0.00032364,30]
[394262579,1763412433288,-500.0,0.00032364,30]
[394262580,1763412433309,-500.0,0.00032364,30]
[394262581,1763412433329,-603.36,0.00032364,30]
[394262582,1763412433350,-500.0,0.00032364,30]
[394262583,1763412433369,-177.68397295,0.00032364,30]
[394262584,1763412433388,-500.0,0.00032364,30]
[394262585,1763412433406,-500.0,0.00032364,30]
[394262586,1763412433425,-380.0,0.00032818,2]
[394262587,1763412433447,-4383.11402635,0.00032877,120]
[394262588,1763412433470,-1037.7818097,0.00034081,2]
[394262589,1763412433491,-500.0,0.00034217,5]
[394262590,1763412433511,-500.0,0.00034217,2]
[394262591,1763412433530,-1000.0,0.00034765,5]
[394262592,1763412433550,-500.0,0.00034794,3]
[394262593,1763412433570,-2028.0,0.00034795,3]
[394262594,1763412433590,-560.0,0.00034795,2]
[394262595,1763412433609,-2000.0,0.00034937,3]
[394262596,1763412433628,-500.0,0.00034973,5]
[394262597,1763412433648,-500.0,0.00034999,7]
[394262598,1763412433770,-500.0,0.00034999,7]
[394262599,1763412433793,-500.0,0.00034999,7]
[394262600,1763412433812,-500.0,0.00034999,7]
[394262601,1763412433834,-500.0,0.00034999,7]
[394262602,1763412433861,-500.0,0.00034999,7]
[394262603,1763412433883,-500.0,0.00034999,7]
[394262604,1763412433906,-500.0,0.00034999,7]
[394262605,1763412433928,-500.0,0.00034999,7]
[394262606,1763412433950,-229.54793893,0.00034999,7]
[394262607,1763412433980,-500.0,0.00034999,7]
[394262608,1763412434002,-500.0,0.00034999,7]
[394262609,1763412434023,-500.0,0.00034999,7]
[394262610,1763412434047,-500.0,0.00034999,7]
[394262611,1763412434070,-500.0,0.00034999,7]
[394262612,1763412434091,-500.0,0.00034999,7]
[394262613,1763412434113,-500.0,0.00034999,7]
[394262614,1763412434139,-500.0,0.00034999,7]
[394262615,1763412434162,-338.31987678,0.00034999,7]
[394262616,1763412434184,-500.0,0.00034999,7]
[394262617,1763412434205,-500.0,0.00034999,7]
[394262618,1763412434228,-500.0,0.00034999,7]
[394262619,1763412434248,-291.37924766,0.00034999,7]
[394262620,1763412434276,-500.0,0.00034999,7]
[394262621,1763412434298,-500.0,0.00034999,7]
[394262622,1763412434318,-500.0,0.00034999,7]
[394262623,1763412434343,-500.0,0.00034999,7]
[394262624,1763412434366,-500.0,0.00034999,7]
[394262625,1763412434389,-500.0,0.00034999,7]
[394262626,1763412434411,-250.0,0.00034999,7]
[394262627,1763412434436,-500.0,0.00034999,7]
[394262628,1763412434458,-500.0,0.00034999,7]
[394262629,1763412434481,-500.0,0.00034999,7]
[394262630,1763412434504,-500.0,0.00034999,7]
[394262631,1763412434524,-500.0,0.00034999,7]
[394262632,1763412434546,-500.0,0.00034999,7]
[394262633,1763412434572,-500.0,0.00034999,7]
[394262634,1763412434593,-500.0,0.00034999,7]
[394262635,1763412434614,-500.0,0.00034999,7]
[394262636,1763412434634,-500.0,0.00034999,7]
[394262637,1763412434657,-500.0,0.00034999,7]
[394262638,1763412434681,-500.0,0.00034999,7]
[394262639,1763412434703,-500.0,0.00034999,7]
[394262640,1763412434725,-500.0,0.00034999,7]
[394262641,1763412434750,-500.0,0.00034999,7]
[394262642,1763412434772,-500.0,0.00034999,7]
[394262643,1763412434795,-500.0,0.00034999,7]
[394262644,1763412434817,-500.0,0.00034999,7]
[394262645,1763412434838,-500.0,0.00034999,7]
[394262646,1763412434862,-500.0,0.00034999,7]
[394262647,1763412434887,-500.0,0.00034999,7]
[394262648,1763412434913,-500.0,0.00034999,7]
[394262649,1763412434939,-640.48735939,0.00034999,7]
[394262650,1763412434962,-500.0,0.00034999,7]
[394262651,1763412434988,-500.0,0.00034999,7]
[394262652,1763412435010,-500.0,0.00034999,7]
[394262653,1763412435039,-500.0,0.00034999,7]
[394262654,1763412435060,-300.0,0.00034999,7]
[394262655,1763412435083,-404.42270977,0.00034999,7]
[394262656,1763412436096,-152.1244919,0.00034973,5]
[394262657,1763412449111,-275.08034466,0.00034973,5]
[394262667,1763412564097,-150.0,0.00031299,2]
[394262668,1763412564120,-206.57,0.00034144,2]
[394262669,1763412564141,-151.11681432,0.00034889,120]
[394262670,1763412564161,-444.50614289,0.00034899,2]
[394262671,1763412564181,-500.0,0.00034973,5]
[394262672,1763412564203,-800.91,0.00034979,10]
[394262673,1763412564223,-500.0,0.00034988,7]
[394262674,1763412564245,-500.0,0.00034988,7]
[394262675,1763412564266,-500.0,0.00034988,7]
[394262676,1763412564285,-500.0,0.00034988,7]